bitfinex/quotes_BTCUSD_20241211
["timestamp","ask_amount","ask_price","bid_price","bid_amount"]
[1733940384575,0.0231718,100040.0,100030.0,0.283967]
[1733940384787,0.0231718,100040.0,100030.0,0.286967]
[1733940384992,0.0231718,100040.0,100030.0,0.285967]
[1733940385200,0.0231718,100040.0,100030.0,0.282967]
[1733940385413,8e-07,100040.0,100030.0,0.60063121]
[1733940385654,8e-07,100040.0,100030.0,0.64763121]
[1733940385878,0.00016579,100050.0,100040.0,0.09996]
[1733940386086,0.00016579,100050.0,100040.0,0.76497997]
[1733940386087,7.9e-07,100050.0,100040.0,0.76497997]
[1733940386302,7.9e-07,100050.0,100040.0,0.91497997]
[1733940386729,7.9e-07,100050.0,100040.0,0.70762421]
[1733940387175,0.08162238,100080.0,100070.0,0.09993]
[1733940387383,0.0005714,100090.0,100070.0,0.19986]
[1733940387587,0.0005714,100090.0,100070.0,0.29979]
[1733940387793,0.0005714,100090.0,100080.0,0.09992]
[1733940388462,0.0025714,100090.0,100080.0,0.09992]
[1733940388675,0.0025714,100090.0,100080.0,0.40758421]
[1733940388889,4e-07,100090.0,100080.0,0.40758421]
[1733940389104,8.7e-07,100100.0,100080.0,1.04227097]
[1733940389311,8.7e-07,100110.0,100100.0,0.0999]
[1733940389587,5.3e-07,100110.0,100100.0,0.40756421]
[1733940389797,1.85117299,100120.0,100100.0,0.75735621]
[1733940390007,1.85117299,100120.0,100110.0,0.40755421]
[1733940390428,1.85117299,100120.0,100110.0,0.09989]
[1733940391070,1.85117299,100120.0,100110.0,0.30724576]
[1733940391282,1.85117299,100120.0,100110.0,0.09989]
[1733940391698,1.85117299,100120.0,100110.0,0.10589]
[1733940393235,1.85130479,100120.0,100110.0,0.11089]
[1733940393708,1.85130479,100120.0,100110.0,0.10589]
[1733940393930,1.85130479,100120.0,100110.0,0.10689]
[1733940394156,1.85130479,100120.0,100110.0,0.10089]
[1733940394362,1.85230479,100120.0,100110.0,0.10089]
[1733940394570,1.85130479,100120.0,100110.0,0.10089]
[1733940395034,1.85130479,100120.0,100110.0,0.10689]
[1733940395237,1.85103634,100120.0,100110.0,0.10589]
[1733940395446,1.85078996,100120.0,100110.0,0.11089]
[1733940395657,1.84273366,100120.0,100110.0,0.11089]
[1733940397682,2.02524211,100120.0,100110.0,0.11089]
[1733940398103,2.17524211,100120.0,100110.0,0.011]
[1733940398313,2.17524211,100120.0,100110.0,0.11089]
[1733940398744,2.02524211,100120.0,100110.0,0.11089]
[1733940398956,1.84273366,100120.0,100110.0,0.10589]
[1733940399168,1.84273366,100120.0,100110.0,0.09989]
[1733940400484,1.94304211,100120.0,100110.0,0.09989]
[1733940400693,1.94504211,100120.0,100110.0,0.09989]
[1733940400904,1.94304211,100120.0,100110.0,0.09989]
[1733940401128,1.94304211,100120.0,100110.0,0.10189]
[1733940401384,1.84273366,100120.0,100110.0,0.10189]
[1733940401598,1.94304211,100120.0,100110.0,0.10489]
[1733940402691,2.02034211,100120.0,100110.0,0.005]
[1733940402917,2.47401828,100120.0,100110.0,0.002]
[1733940403548,0.3,100110.0,100100.0,0.00016566]
[1733940403763,0.40030845,100110.0,100100.0,0.00016566]
[1733940403989,0.60008845,100110.0,100100.0,0.00016566]
[1733940404195,0.60008845,100110.0,100100.0,0.00025146]
[1733940404409,0.67728845,100110.0,100100.0,0.00025146]
[1733940404616,0.52728845,100110.0,100100.0,0.00025146]
[1733940405297,0.52928845,100110.0,100100.0,0.00025146]
[1733940406022,0.73595496,100110.0,100100.0,0.00025146]
[1733940406660,0.73395496,100110.0,100100.0,0.00025146]
[1733940406874,0.59195496,100110.0,100100.0,0.00125146]
[1733940407083,0.74195496,100110.0,100100.0,0.00125146]
[1733940407501,0.54217496,100110.0,100100.0,0.00125146]
[1733940407715,0.54517496,100110.0,100100.0,0.00125146]
[1733940407929,0.59495496,100110.0,100100.0,0.00125146]
[1733940408138,0.53828845,100110.0,100100.0,0.00125146]
[1733940408361,0.08033245,100110.0,100100.0,0.10114246]
[1733940408586,1.17722391,100120.0,100110.0,0.24989]
[1733940408811,1.17722391,100120.0,100110.0,0.50019845]
[1733940409100,1.07092294,100120.0,100110.0,0.50019845]
[1733940409318,1.05094694,100120.0,100110.0,0.50019845]
[1733940409537,1.05094694,100120.0,100110.0,0.35019845]
[1733940410193,1.05094694,100120.0,100110.0,0.24989]
[1733940410650,1.05594694,100120.0,100110.0,0.24989]
[1733940411587,1.05694694,100120.0,100110.0,0.24989]
[1733940412658,1.05694694,100120.0,100110.0,0.39989]
[1733940415006,1.05594694,100120.0,100110.0,0.39989]
[1733940415479,1.05594694,100120.0,100110.0,0.40589]
[1733940415685,1.05094694,100120.0,100110.0,0.40589]
[1733940415895,1.05094694,100120.0,100110.0,0.39989]
[1733940416096,1.05094694,100120.0,100110.0,0.40889]
[1733940416308,1.05194694,100120.0,100110.0,0.39989]
[1733940418273,1.15225539,100120.0,100110.0,0.24989]
[1733940418498,1.15225539,100120.0,100110.0,0.09989]
[1733940418712,1.15225539,100120.0,100110.0,0.24989]
[1733940419391,1.15125539,100120.0,100110.0,0.24989]
[1733940419593,1.15125539,100120.0,100110.0,0.40489]
[1733940419821,1.15125539,100120.0,100110.0,0.25489]
[1733940420038,1.43045539,100120.0,100110.0,0.005]
[1733940420261,1.28045539,100120.0,100110.0,0.10489]
[1733940420807,1.28045539,100120.0,100110.0,0.10889]
[1733940421017,1.43045539,100120.0,100110.0,0.009]
[1733940421240,1.43045539,100120.0,100110.0,0.159]
[1733940421460,1.28045539,100120.0,100110.0,0.25889]
[1733940421897,1.23245539,100120.0,100110.0,0.25889]
[1733940422360,1.05094694,100120.0,100110.0,0.40889]
[1733940423003,0.89113894,100120.0,100110.0,0.53219845]
[1733940423230,0.85118694,100120.0,100110.0,0.53219845]
[1733940423500,0.85118694,100120.0,100110.0,0.96255232]
[1733940424148,0.75130694,100120.0,100110.0,0.96255232]
[1733940424814,0.75130694,100120.0,100110.0,1.10855232]
[1733940425024,0.75130694,100120.0,100110.0,1.10355232]
[1733940425025,0.71135494,100120.0,100110.0,1.10355232]
[1733940425237,0.45192182,100120.0,100110.0,1.64968632]
[1733940425444,0.45592182,100120.0,100110.0,1.95068632]
[1733940425661,0.0001718,100140.0,100130.0,0.473]
[1733940425882,0.0001718,100140.0,100130.0,0.67317845]
[1733940426114,8e-07,100140.0,100130.0,0.67317845]
[1733940426959,8e-07,100140.0,100130.0,0.52317845]
[1733940427179,0.04017259,100170.0,100140.0,0.173]
[1733940427417,0.04017259,100170.0,100160.0,0.39984]
[1733940428328,0.2871,100190.0,100180.0,0.3]
[1733940428588,0.38757414,100190.0,100180.0,0.39982]
[1733940429227,0.28726569,100190.0,100180.0,0.39982]
[1733940433014,0.38757414,100190.0,100180.0,0.15]
[1733940433222,0.73720414,100190.0,100160.0,0.099833]
[1733940433442,0.0813,100170.0,100160.0,0.249833]
[1733940434519,0.0813,100170.0,100160.0,0.399833]
[1733940435169,0.0813,100170.0,100160.0,0.402833]
[1733940435383,0.0813,100170.0,100160.0,0.407833]
[1733940435779,0.00124789,100180.0,100170.0,0.39983]
[1733940435980,0.36986569,100190.0,100170.0,0.39983]
[1733940436198,0.47017414,100190.0,100180.0,0.24982]
[1733940437984,0.47017414,100190.0,100180.0,0.15]
[1733940438190,0.81979414,100190.0,100170.0,0.151]
[1733940438406,0.25624992,100180.0,100170.0,0.15]
[1733940438734,0.44994845,100180.0,100160.0,0.199673]
[1733940438917,0.00124801,100170.0,100160.0,0.099835]
[1733940439119,0.22235646,100170.0,100160.0,0.099835]
[1733940439292,0.22110845,100170.0,100150.0,0.199687]
[1733940439496,0.10155655,100160.0,100150.0,0.099842]
[1733940439694,0.10155655,100160.0,100140.0,0.349703]
[1733940439957,0.00124817,100150.0,100140.0,0.099851]
[1733940440164,0.10155662,100150.0,100140.0,0.249851]
[1733940440531,0.1291,100140.0,100130.0,0.19973]
[1733940440701,0.22940845,100140.0,100130.0,0.34973]
[1733940441943,0.22940845,100140.0,100130.0,0.50273]
[1733940442144,0.22940845,100140.0,100130.0,0.008]
[1733940442363,0.22940845,100140.0,100130.0,0.003]
[1733940442364,0.84867811,100140.0,100130.0,0.003]
[1733940442512,0.471256,100130.0,100110.0,8.58e-05]
[1733940442721,0.10155713,100120.0,100110.0,8.58e-05]
[1733940442999,0.25155713,100120.0,100110.0,8.58e-05]
[1733940443226,0.25030845,100120.0,100110.0,8.58e-05]
[1733940444095,0.63233496,100120.0,100110.0,8.58e-05]
[1733940444301,0.22590845,100120.0,100110.0,8.58e-05]
[1733940444516,0.22590845,100120.0,100110.0,0.0999758]
[1733940445153,0.37590845,100120.0,100110.0,0.1500858]
[1733940445375,0.37590845,100120.0,100110.0,0.0010858]
[1733940445797,0.37590845,100120.0,100110.0,0.0020858]
[1733940446220,0.22590845,100120.0,100110.0,0.0020858]
[1733940446467,0.37590845,100120.0,100110.0,0.2519758]
[1733940446679,0.37590845,100120.0,100110.0,0.1520858]
[1733940446897,0.0485,100100.0,100060.0,0.16339746]
[1733940447120,0.0485,100080.0,100060.0,0.10048567]
[1733940447330,0.17935768,100070.0,100060.0,0.10048567]
[1733940447558,0.17935768,100070.0,100060.0,0.00055267]
[1733940447766,0.52921783,100070.0,100060.0,0.00055267]
[1733940447992,0.52796845,100070.0,100060.0,0.00155267]
[1733940448199,0.32810845,100070.0,100060.0,0.00155267]
[1733940448416,0.32810845,100070.0,100060.0,0.00055267]
[1733940448629,0.32810845,100070.0,100060.0,0.00155267]
[1733940448841,0.43147496,100070.0,100060.0,0.00155267]
[1733940449077,0.63133496,100070.0,100060.0,0.00155267]
[1733940449501,0.2727,100050.0,100030.0,0.0004859]
[1733940449718,0.34767816,100040.0,100030.0,0.00065156]
[1733940449929,0.49642845,100040.0,100030.0,0.00065156]
[1733940450362,0.70309496,100040.0,100030.0,0.00065156]
[1733940450777,0.15,100030.0,100010.0,0.0004]
[1733940450999,0.1015584,100020.0,100010.0,0.10055579]
[1733940451203,0.1015584,100020.0,100010.0,0.20054579]
[1733940451881,0.1015584,100020.0,100010.0,0.25455579]
[1733940452089,0.1015584,100020.0,100010.0,0.00056579]
[1733940452723,0.63808491,100020.0,100010.0,0.00056579]
[1733940452955,0.78683496,100020.0,100010.0,0.00056579]
[1733940453164,0.98680796,100020.0,100000.0,8.58e-05]
[1733940453376,0.00125008,100010.0,100000.0,8.58e-05]
[1733940453584,0.00125008,100010.0,100000.0,0.00444448]
[1733940453585,0.10155853,100010.0,100000.0,0.00444448]
[1733940453791,0.1299,100020.0,100010.0,0.09999]
[1733940454041,0.23020845,100020.0,100010.0,0.24999]
[1733940454681,0.1299,100020.0,100010.0,0.39999]
[1733940454894,0.13284985,100040.0,100030.0,0.24997]
[1733940455105,0.1316,100070.0,100060.0,0.099932]
[1733940455335,0.23332332,100070.0,100060.0,0.099932]
[1733940455563,0.232074,100070.0,100050.0,0.449826]
[1733940455783,0.232074,100070.0,100050.0,0.349884]
[1733940455784,0.00124932,100060.0,100050.0,0.349884]
[1733940457258,0.00324932,100060.0,100050.0,0.349884]
[1733940457678,0.10355777,100060.0,100050.0,0.349884]
[1733940457881,0.10455777,100060.0,100050.0,0.349884]
[1733940458106,0.10330845,100060.0,100050.0,0.349884]
[1733940458314,0.10455782,100060.0,100050.0,0.349884]
[1733940459576,0.10255782,100060.0,100050.0,0.349884]
[1733940459776,0.10155782,100060.0,100050.0,0.350884]
[1733940460187,0.25155782,100060.0,100050.0,0.152]
[1733940460438,0.25155782,100060.0,100050.0,0.25195]
[1733940460439,0.25030845,100060.0,100050.0,0.25195]
[1733940460857,0.25030845,100060.0,100050.0,0.25095]
[1733940461061,0.25030845,100060.0,100050.0,0.24995]
[1733940461268,0.25130845,100060.0,100050.0,0.15]
[1733940461470,0.70805496,100060.0,100030.0,0.199928]
[1733940461742,0.25155807,100050.0,100040.0,0.09996]
[1733940461954,0.25030845,100050.0,100040.0,0.09996]
[1733940462787,0.15,100040.0,100030.0,0.199927]
[1733940462996,0.25155817,100040.0,100030.0,0.199927]
[1733940463236,0.32580845,100040.0,100030.0,0.199927]
[1733940463459,0.17580845,100040.0,100030.0,0.199927]
[1733940463660,0.32705817,100040.0,100030.0,0.199927]
[1733940463871,0.32680845,100040.0,100030.0,0.199927]
[1733940464289,0.32680845,100040.0,100020.0,0.099973]
[1733940464290,0.0497,100030.0,100020.0,0.099973]
[1733940464527,0.15000845,100030.0,100020.0,0.099973]
[1733940464942,0.0497,100030.0,100020.0,0.099973]
[1733940465573,0.05111515,100030.0,100020.0,0.099973]
[1733940465795,0.05111515,100030.0,100020.0,0.399973]
[1733940466005,4.3e-07,100030.0,100020.0,0.399973]
[1733940466627,4.3e-07,100030.0,100020.0,0.400973]
[1733940466859,4.3e-07,100030.0,100020.0,0.399973]
[1733940467279,4.3e-07,100030.0,100020.0,0.405973]
[1733940467694,4.3e-07,100030.0,100020.0,0.404973]
[1733940468069,4.3e-07,100030.0,100020.0,0.407973]
[1733940468710,4.3e-07,100030.0,100020.0,0.50828145]
[1733940470386,4.3e-07,100030.0,100020.0,1.13792287]
[1733940470759,0.0001718,100060.0,100050.0,0.39995]
[1733940470965,0.0001718,100060.0,100050.0,0.60691652]
[1733940472013,0.10172946,100060.0,100050.0,0.24995]
[1733940472488,0.25172946,100060.0,100050.0,0.09995]
[1733940472719,0.25048025,100060.0,100050.0,0.09995]
[1733940472918,0.32728025,100060.0,100050.0,0.09995]
[1733940473214,0.32728025,100060.0,100050.0,0.10095]
[1733940473650,0.32728025,100060.0,100050.0,0.09995]
[1733940474268,0.32728025,100060.0,100050.0,0.25095]
[1733940475824,0.32728025,100060.0,100050.0,0.24995]
[1733940476224,0.32728025,100060.0,100050.0,0.25095]
[1733940476435,0.32928025,100060.0,100050.0,0.25095]
[1733940477132,0.32728025,100060.0,100050.0,0.24995]
[1733940477510,0.32928025,100060.0,100050.0,0.24995]
[1733940481333,0.17928025,100060.0,100050.0,0.24995]
[1733940481536,0.0021718,100060.0,100050.0,0.60691652]
[1733940481948,0.00342112,100060.0,100050.0,0.60691652]
[1733940482152,0.10372957,100060.0,100050.0,0.39995]
[1733940482357,0.25172957,100060.0,100050.0,0.24995]
[1733940482569,0.33138025,100060.0,100050.0,0.24995]
[1733940482780,0.33338025,100060.0,100050.0,0.24995]
[1733940483009,0.33138025,100060.0,100050.0,0.24995]
[1733940483213,0.33138025,100060.0,100040.0,0.199905]
[1733940483436,0.2310718,100060.0,100050.0,0.10095]
[1733940483666,0.33138025,100060.0,100050.0,0.10195]
[1733940484026,0.33138025,100060.0,100050.0,0.10095]
[1733940484713,0.33138025,100060.0,100050.0,0.24995]
[1733940484714,0.18138025,100060.0,100050.0,0.24995]
[1733940484901,0.0001718,100060.0,100050.0,0.60691652]
[1733940485556,0.10172952,100060.0,100050.0,0.24995]
[1733940485788,0.10172952,100060.0,100040.0,0.549813]
[1733940485989,0.10172952,100060.0,100050.0,0.09995]
[1733940486604,0.10172952,100060.0,100050.0,0.10495]
[1733940486772,0.10172952,100060.0,100050.0,0.09995]
[1733940487180,0.10172952,100060.0,100050.0,0.10495]
[1733940487687,0.10172952,100060.0,100050.0,0.10795]
[1733940488128,0.10172952,100060.0,100050.0,0.008]
[1733940488129,0.32722952,100060.0,100050.0,0.008]
[1733940488331,0.32598025,100060.0,100050.0,0.10795]
[1733940489340,0.32598025,100060.0,100050.0,0.10295]
[1733940489580,0.32598025,100060.0,100050.0,0.09995]
[1733940490406,0.17598025,100060.0,100050.0,0.09995]
[1733940490607,0.17722964,100060.0,100050.0,0.09995]
[1733940491605,0.32722964,100060.0,100050.0,0.09995]
[1733940491819,0.32598025,100060.0,100050.0,0.09995]
[1733940492317,0.15,100050.0,100040.0,0.199905]
[1733940492512,0.30135802,100050.0,100040.0,0.199905]
[1733940492721,0.30010845,100050.0,100040.0,0.199905]
[1733940493391,0.15,100040.0,100030.0,0.1000499]
[1733940493782,0.25155816,100040.0,100030.0,0.1000499]
[1733940493991,0.25030845,100040.0,100030.0,8.59e-05]
[1733940494196,0.45022845,100040.0,100030.0,8.59e-05]
[1733940494382,0.30022845,100040.0,100030.0,8.59e-05]
[1733940494593,0.34572845,100040.0,100030.0,0.0010859]
[1733940494806,0.44962845,100040.0,100030.0,0.0010859]
[1733940495421,0.22670845,100040.0,100030.0,0.0010859]
[1733940495623,0.22670845,100040.0,100030.0,0.1010559]
[1733940496369,0.22670845,100040.0,100030.0,0.1020559]
[1733940496579,0.1264,100040.0,100030.0,0.2520559]
[1733940496781,0.1261718,100060.0,100050.0,0.09995]
[1733940496982,0.22648025,100060.0,100050.0,0.09995]
[1733940497422,0.14848025,100060.0,100050.0,0.09995]
[1733940498912,0.0511718,100060.0,100050.0,0.25095]
[1733940499065,0.0481718,100060.0,100050.0,0.39995]
[1733940499264,0.0491718,100060.0,100050.0,0.40095]
[1733940499679,0.0481718,100060.0,100050.0,0.40095]
[1733940499905,0.14848025,100060.0,100050.0,0.40095]
[1733940500089,0.0481718,100060.0,100050.0,0.40095]
[1733940501701,0.0481718,100060.0,100050.0,0.40195]
[1733940502176,0.0481718,100060.0,100050.0,0.40095]
[1733940502620,0.14848025,100060.0,100050.0,0.25195]
[1733940502737,0.14972964,100060.0,100050.0,0.25195]
[1733940503155,0.14972964,100060.0,100050.0,0.40195]
[1733940503361,0.14972964,100060.0,100050.0,0.39525]
[1733940503743,0.04942119,100060.0,100050.0,0.39525]
[1733940503944,0.0001718,100060.0,100050.0,0.60221652]
[1733940504152,8e-07,100060.0,100050.0,1.27848764]
[1733940504353,8e-07,100060.0,100050.0,1.64466971]
[1733940504603,8e-07,100060.0,100050.0,1.68944334]
[1733940505050,8e-07,100060.0,100050.0,2.09845036]
[1733940505209,8e-07,100060.0,100050.0,2.09645036]
[1733940505612,8e-07,100060.0,100050.0,2.09745036]
[1733940505990,8e-07,100060.0,100050.0,1.85850143]
[1733940506407,8e-07,100060.0,100050.0,2.28785897]
[1733940506629,8e-07,100060.0,100050.0,1.92375195]
[1733940506836,0.0482,100100.0,100090.0,0.24991]
[1733940507261,0.04875267,100100.0,100090.0,0.24991]
[1733940508384,0.23076112,100100.0,100090.0,0.09991]
[1733940508627,0.58056112,100100.0,100080.0,0.199826]
[1733940508840,0.10155751,100090.0,100080.0,0.199824]
[1733940509265,0.25155751,100090.0,100080.0,0.099911]
[1733940509474,0.2782,100080.0,100070.0,0.099923]
[1733940509683,0.37850845,100080.0,100070.0,0.099923]
[1733940511684,0.38350845,100080.0,100070.0,0.099923]
[1733940511890,0.58334945,100080.0,100060.0,0.199869]
[1733940512098,0.58334945,100080.0,100050.0,8.59e-05]
[1733940512099,0.25155774,100070.0,100050.0,8.59e-05]
[1733940512306,0.2762,100060.0,100050.0,0.1999769]
[1733940512565,0.37650845,100060.0,100050.0,0.1999769]
[1733940512834,0.37650845,100060.0,100050.0,8.59e-05]
[1733940513080,0.42638845,100060.0,100050.0,8.59e-05]
[1733940514661,0.42638845,100060.0,100030.0,0.1000469]
[1733940514662,0.2792,100040.0,100030.0,0.1000469]
[1733940514895,0.37950845,100040.0,100030.0,0.1000469]
[1733940516187,0.37950845,100040.0,100030.0,0.0050859]
[1733940516411,0.57942845,100040.0,100030.0,0.0050859]
[1733940516620,0.37950845,100040.0,100030.0,0.1050559]
[1733940518293,0.37950845,100040.0,100030.0,0.1000559]
[1733940518721,0.38250845,100040.0,100030.0,0.1000559]
[1733940518880,0.38350845,100040.0,100030.0,0.1000559]
[1733940519206,0.38650845,100040.0,100030.0,0.1000559]
[1733940521153,0.38550845,100040.0,100030.0,0.1000559]
[1733940521578,0.38150845,100040.0,100030.0,0.1000559]
[1733940521778,0.38650845,100040.0,100030.0,0.1000559]
[1733940522003,0.38450845,100040.0,100030.0,0.1000559]
[1733940522211,0.38650845,100040.0,100030.0,0.1000559]
[1733940522422,0.39050845,100040.0,100030.0,0.1000559]
[1733940522880,0.38850845,100040.0,100030.0,0.1000559]
[1733940523103,0.39050845,100040.0,100030.0,0.1000559]
[1733940524154,0.38150845,100040.0,100030.0,0.1000559]
[1733940524362,0.38350845,100040.0,100030.0,0.1000559]
[1733940524812,0.0486,100040.0,100030.0,0.2500559]
[1733940525020,0.006,100040.0,100030.0,0.2500559]
[1733940525254,0.006,100040.0,100030.0,0.4000559]
[1733940525255,0.002,100040.0,100030.0,0.4000559]
[1733940525664,0.004,100040.0,100030.0,0.4000559]
[1733940525873,0.00124956,100050.0,100030.0,0.5999899]
[1733940526045,0.10155801,100050.0,100040.0,0.09996]
[1733940528131,0.25155801,100050.0,100040.0,0.09996]
[1733940528334,0.25155801,100050.0,100030.0,0.3520139]
[1733940528335,0.25030845,100050.0,100030.0,0.3520139]
[1733940528536,0.10155811,100040.0,100030.0,0.3520139]
[1733940528749,0.10155811,100040.0,100030.0,0.2020139]
[1733940528952,0.10155811,100040.0,100030.0,0.2000139]
[1733940531458,0.10155811,100040.0,100030.0,0.2010139]
[1733940531665,0.10155811,100040.0,100030.0,0.2000139]
[1733940532069,0.10155811,100040.0,100030.0,0.2020139]
[1733940532289,0.10155811,100040.0,100030.0,0.3520139]
[1733940532702,0.10155811,100040.0,100030.0,0.5020139]
[1733940532703,0.00124966,100040.0,100030.0,0.5020139]
[1733940532910,0.2789718,100060.0,100050.0,0.09995]
[1733940533116,0.2789718,100060.0,100050.0,0.24995]
[1733940533117,0.0466718,100060.0,100050.0,0.24995]
[1733940534196,0.0466718,100060.0,100050.0,0.25395]
[1733940534811,0.14698025,100060.0,100050.0,0.25395]
[1733940536373,0.14698025,100060.0,100050.0,0.24995]
[1733940536861,0.14798025,100060.0,100050.0,0.24995]
[1733940540032,0.14698025,100060.0,100050.0,0.24995]
[1733940540517,0.14798025,100060.0,100050.0,0.24995]
[1733940541038,0.37648025,100060.0,100050.0,0.09995]
[1733940541454,0.37648025,100060.0,100040.0,0.099951]
[1733940541697,0.45852455,100050.0,100030.0,0.1000499]
[1733940541899,0.1257,100040.0,100030.0,0.1000499]
[1733940542108,0.22725813,100040.0,100030.0,0.1000499]
[1733940542309,0.58297497,100040.0,100030.0,8.59e-05]
[1733940542511,0.57592845,100040.0,100030.0,8.59e-05]
[1733940543392,0.57592845,100040.0,100030.0,0.0060859]
[1733940543596,0.65589497,100040.0,100030.0,0.0060859]
[1733940543803,0.65589497,100040.0,100030.0,0.0020859]
[1733940544009,0.65589497,100040.0,100010.0,8.59e-05]
[1733940544010,0.15,100020.0,100010.0,8.59e-05]
[1733940544215,0.47451853,100020.0,100010.0,0.00025133]
[1733940544428,0.55306845,100020.0,100010.0,0.00025133]
[1733940544631,0.59916845,100020.0,100010.0,0.00025133]
[1733940544835,0.39920845,100020.0,100010.0,0.00025133]
[1733940545028,0.26720845,100020.0,100010.0,0.00025133]
[1733940545217,0.46716845,100020.0,100010.0,0.00025133]
[1733940546034,0.67913497,100020.0,100010.0,0.00025133]
[1733940546173,0.50408,100010.0,100000.0,8.58e-05]
[1733940546377,0.60438845,100010.0,100000.0,8.58e-05]
[1733940547017,0.40440845,100010.0,100000.0,8.58e-05]
[1733940547539,0.61038845,100010.0,100000.0,0.0010858]
[1733940547957,0.60438845,100010.0,100000.0,8.58e-05]
[1733940548161,0.41040845,100010.0,100000.0,0.0010858]
[1733940548376,0.41040845,100010.0,100000.0,0.20805232]
[1733940548377,0.23740845,100010.0,100000.0,0.20805232]
[1733940548584,0.23740845,100010.0,100000.0,0.0010858]
[1733940548791,0.15910845,100010.0,100000.0,0.0010858]
[1733940549462,0.15010845,100010.0,100000.0,8.58e-05]
[1733940549672,0.15810845,100010.0,100000.0,0.0010858]
[1733940550112,0.15110845,100010.0,100000.0,8.58e-05]
[1733940550331,0.15310845,100010.0,100000.0,0.1500858]
[1733940551006,0.15310845,100010.0,100000.0,0.1510858]
[1733940551223,0.15010845,100010.0,100000.0,0.1500858]
[1733940551924,0.10030845,100010.0,100000.0,0.3500718]
[1733940552140,0.14029675,100030.0,100020.0,0.09998]
[1733940552364,0.22817409,100030.0,100020.0,0.09998]
[1733940553349,0.37817409,100030.0,100020.0,0.09998]
[1733940553769,0.37917409,100030.0,100020.0,0.09998]
[1733940554377,0.38317409,100030.0,100020.0,0.09998]
[1733940555288,0.38617409,100030.0,100020.0,0.09998]
[1733940555420,0.60411409,100030.0,100010.0,0.199968]
[1733940555627,0.10155839,100020.0,100010.0,0.199968]
[1733940555831,0.10155839,100020.0,100000.0,0.2000718]
[1733940555832,0.25155839,100020.0,100000.0,0.2000718]
[1733940556250,0.25155839,100020.0,100010.0,0.09999]
[1733940556545,0.10030845,100020.0,100010.0,0.09999]
[1733940556749,0.10155839,100020.0,100010.0,0.09999]
[1733940557167,0.10455839,100020.0,100010.0,0.09999]
[1733940558235,0.10455839,100020.0,100000.0,0.3000658]
[1733940558236,0.45451839,100020.0,100000.0,0.2000718]
[1733940558440,0.00125005,100010.0,100000.0,0.1000778]
[1733940558652,0.2745585,100010.0,100000.0,8.58e-05]
[1733940558866,0.40380845,100010.0,100000.0,0.1000858]
[1733940559085,0.23080845,100010.0,100000.0,0.1000858]
[1733940559301,0.38080845,100010.0,100000.0,0.1000858]
[1733940559525,0.23080845,100010.0,100000.0,0.1000858]
[1733940561209,0.23080845,100010.0,100000.0,8.58e-05]
[1733940561210,0.6056693,100010.0,100000.0,8.58e-05]
[1733940561417,0.43078845,100010.0,100000.0,8.58e-05]
[1733940561829,0.43278845,100010.0,100000.0,8.58e-05]
[1733940562039,0.45778845,100010.0,100000.0,8.58e-05]
[1733940562256,0.45378845,100010.0,100000.0,8.58e-05]
[1733940562672,0.46578845,100010.0,100000.0,8.58e-05]
[1733940562881,0.45778845,100010.0,100000.0,8.58e-05]
[1733940563089,0.45378845,100010.0,100000.0,8.58e-05]
[1733940563305,0.46078845,100010.0,100000.0,8.58e-05]
[1733940563514,0.45778845,100010.0,100000.0,8.58e-05]
[1733940563720,0.47215897,100010.0,100000.0,8.58e-05]
[1733940563925,0.45778845,100010.0,100000.0,8.58e-05]
[1733940564342,0.66475497,100010.0,100000.0,8.58e-05]
[1733940564550,0.66475497,100010.0,99991.0,0.0004]
[1733940564551,0.200016,99992.0,99991.0,0.0004]
[1733940564760,0.30157484,99992.0,99991.0,0.0004]
[1733940564963,0.10030845,99992.0,99991.0,0.0004]
[1733940565166,0.10155882,99992.0,99991.0,0.0004]
[1733940565792,0.10155882,99992.0,99991.0,0.00056576]
[1733940566414,0.10155882,99992.0,99991.0,0.00156576]
[1733940567259,0.10155874,99992.0,99991.0,0.10157476]
[1733940567411,0.10030845,99992.0,99991.0,0.00156576]
[1733940567618,0.1015587,99992.0,99991.0,0.00056576]
[1733940567820,0.1015587,99992.0,99991.0,0.00386581]
[1733940568081,0.2595587,99992.0,99991.0,0.00386581]
[1733940568295,0.25130845,99992.0,99991.0,0.00386581]
[1733940568475,0.25130845,99992.0,99991.0,0.00056576]
[1733940568718,0.25430845,99992.0,99991.0,0.00056576]
[1733940571592,0.25330845,99992.0,99991.0,0.00056576]
[1733940571833,0.25030845,99992.0,99991.0,0.00056576]
[1733940572049,0.25230845,99992.0,99991.0,0.00056576]
[1733940572268,0.25230845,99992.0,99980.0,8.59e-05]
[1733940572269,0.478238,99981.0,99980.0,8.59e-05]
[1733940572491,0.57854645,99981.0,99980.0,8.59e-05]
[1733940572724,0.478256,99972.0,99971.0,0.0004]
[1733940572937,0.350078,99961.0,99950.0,8.58e-05]
[1733940573154,0.45038645,99961.0,99950.0,8.58e-05]
[1733940573417,0.10030845,99961.0,99950.0,8.58e-05]
[1733940573631,0.10030845,99961.0,99958.0,0.15]
[1733940573850,0.00125055,99971.0,99958.0,0.15]
[1733940574057,0.0809,99985.0,99956.0,0.100043]
[1733940574058,0.10030845,99970.0,99969.0,0.100031]
[1733940574265,0.00125049,99984.0,99967.0,0.100032]
[1733940574266,5.517e-05,99971.0,99967.0,0.100032]
[1733940574476,5.517e-05,99971.0,99968.0,0.100032]
[1733940574781,5.517e-05,99971.0,99968.0,0.350064]
[1733940575688,5.517e-05,99971.0,99968.0,0.352064]
[1733940575895,5.517e-05,99971.0,99970.0,0.15]
[1733940576108,5.517e-05,99971.0,99970.0,0.3]
[1733940576739,5.517e-05,99971.0,99970.0,0.65013085]
[1733940576740,1.7e-07,99971.0,99970.0,0.65013085]
[1733940577358,0.27992222,100020.0,99994.0,0.300018]
[1733940577566,0.27992222,100020.0,100000.0,0.1]
[1733940577567,0.10030845,100010.0,100000.0,0.1]
[1733940578854,0.10230845,100010.0,100000.0,0.1]
[1733940579065,0.002,100010.0,100000.0,0.40082783]
[1733940579270,0.0062499,100010.0,100000.0,0.40082783]
[1733940579480,0.0072499,100010.0,100000.0,0.40082783]
[1733940580107,0.006,100010.0,100000.0,0.40082783]
[1733940580529,0.001,100010.0,100000.0,0.40082783]
[1733940580744,5.526e-05,100020.0,100010.0,0.00082783]
[1733940581006,0.10036371,100020.0,100010.0,0.25081783]
[1733940581880,0.10036371,100020.0,100010.0,0.25381783]
[1733940582097,0.00105526,100020.0,100010.0,0.25481783]
[1733940582349,0.00105526,100020.0,100010.0,0.25381783]
[1733940582572,0.10136371,100020.0,100010.0,0.24999]
[1733940582798,0.30132371,100020.0,100010.0,0.24999]
[1733940583005,0.10136371,100020.0,100010.0,0.24999]